Workbook

Sheet Intro
A1: The workbook contains 14 spreadsheet pages, divided into three sections.
A2: 1. Land use budget and profit analysis
A3: 2. Opportunity cost and tradeoff analysis
A4: 3. Eligibility filter
A6: 1. Land use budget and profit analysis
A7: The first set of spreadsheets provides 8 sample land use budgets of agricultural of forest land uses
A8: Many of the parameters, such as prices and yields, can be changed in order to conduct sensitivity and scenario analyses
A10: A 30-year analysis of profits is also supplied Data is linked to the land use budgets.
A11: The profit analysis of net present value (NPV) can be adjusted per discount rate.
A13: 2. Opportunity cost and tradeoff analyses
A15: 3. REDD program eligibility filter of land use changes

Sheet Rice
E1: Rice Budget
A2: Rice | B2: Per hectare
A4: Profit | B4: =I6-B6 -> 45.3
A6: Inputs | B6: =SUM(D8:D12)+(SUM(F17:F22))+(SUM(M18:M22)) -> 234.7 | H6: Income | I6: =I8*J8 -> 280
A7: Product | B7: Quantitiy | C7: Price | D7: Cost | E7: Units | I7: Harvest (kg) | J7: Price
A8: Seed | B8: 25 | C8: 0.2 | D8: =B8*C8 -> 5 | E8: kg | H8: =A2 -> Rice | I8: 2000 | J8: 0.14
A9: Fertilizer | D9: =B9*C9 -> 0 | E9: kg
A10: Herbicides | D10: =B10*C10 -> 0 | E10: liter
A11: Insecticides | B11: 1 | C11: 4 | D11: =B11*C11 -> 4 | E11: liter
A12: Tools | D12: =SUM(L18:L23) -> 0.2 | E12: unit
A15: Labor | B15: Family | D15: Purchased
A16: Activity | B16: Workdays | C16: Price | D16: Workdays | E16: Price | F16: Cost
A17: Preparation | B17: =N27 -> 20 | C17: 3 | D17: =N38 -> 0 | F17: =(B17*C17)+(D17*E17) -> 60 | H17: Tools | J17: Price | K17: Duration | L17: area pro-rate | M17: Yearly cost
A18: Seeding | B18: 12 | C18: 3 | D18: 0 | F18: 36 | H18: machete | J18: 2.5 | K18: 1 | L18: 0.2 | M18: =J18*K18*L18 -> 0.5
A19: Weeding | B19: 16 | C19: 3 | D19: 4 | E19: 3 | F19: 60
A20: Harvest | B20: 16 | C20: 3 | D20: 4 | E20: 3 | F20: 60
A21: Threshing | B21: 2 | C21: 3 | D21: 0 | F21: 6
A22: Transport | B22: 1 | C22: 3 | D22: 0 | F22: 3
A25: Family labor calendar
A26: Activity | B26: Aug | C26: Sep | D26: Oct | E26: Nov | F26: Dec | G26: Jan | H26: Feb | I26: Mar | J26: Abr | K26: May | L26: Jun | M26: Jul | N26: Total
A27: Preparation | B27: 20 | N27: =SUM(B27:M27) -> 20
A28: Seeding | C28: 12 | N28: 12
A29: Weeding | D29: 8 | F29: 8 | N29: 16
A30: Harvest | G30: 16 | N30: 16
A31: Drying/husking | G31: 2 | N31: 2
A32: Transport | G32: 1 | N32: 1
A34: Total | B34: =SUM(B27:B32) -> 20 | C34: 12 | D34: 8 | E34: 0 | F34: 8 | G34: 19 | H34: 0 | I34: 0 | J34: 0 | K34: 0 | L34: 0 | M34: 0 | N34: =SUM(N27:N32) -> 67
A36: Purchased labor calendar
A37: Activity | B37: Aug | C37: Sep | D37: Oct | E37: Nov | F37: Dec | G37: Jan | H37: Feb | I37: Mar | J37: Abr | K37: May | L37: Jun | M37: Jul | N37: Total
A38: Preparation | N38: =SUM(B38:M38) -> 0
A39: Seeding | N39: 0
A40: Weeding | D40: 2 | F40: 2 | N40: 4
A41: Harvest | G41: 4 | N41: 4
A42: Drying/husking | N42: 0
A43: Transport | N43: 0
A45: Total | B45: =SUM(B38:B43) -> 0 | C45: 0 | D45: 2 | E45: 0 | F45: 2 | G45: 4 | H45: 0 | I45: 0 | J45: 0 | K45: 0 | L45: 0 | M45: 0 | N45: 8

Sheet rice+plantain
A1: Rice-plantain-fallow
B2: Four year fallow | F2: Eight year fallow
A3: Annual net income
A4: Year | B4: Total | C4: Rice | D4: Plantain | E4: Forest Conv | F4: Total | G4: Rice | H4: Plantain | I4: Forest Conv | J4: labor rice | K4: labor plantain | L4: labor total | M4: 8yr | N4: 4yr
A5: 1 | B5: =C5+D5+E5 -> -60 | C5: =B40 -> 0 | D5: =B90 -> 0 | E5: -60 | F5: =G5+H5+I5 -> -60 | G5: =B40 -> 0 | H5: =B90 -> 0 | I5: -60 | J5: 165 | K5: 300 | L5: =K5+J5 -> 465 | M5: =F5+L5 -> 405 | N5: =L5+B5 -> 405
A6: =A5+1 -> 2 | B6: =C6+D6 -> 0 | D6: =B91 -> 0 | F6: =G6+H6 -> 0 | H6: =B91 -> 0 | K6: 258 | L6: =K6+J6 -> 258 | M6: =F6+L6 -> 258 | N6: =L6+B6 -> 258
A7: =A6+1 -> 3 | B7: 0 | D7: =B92 -> 0 | F7: 0 | H7: =B92 -> 0 | K7: 258 | L7: 258 | M7: 258 | N7: 258
A8: 4 | B8: 0 | F8: 0 | M8: 0 | N8: 0 | O8: 0.1 | P8: Discount rate
A9: 5 | B9: 0 | F9: 0 | M9: 0 | N9: 0 | P9: 4yr | Q9: 8yr
A10: 6 | B10: 0 | F10: 0 | M10: 0 | N10: 0 | O10: NPV | P10: =NPV(O8,B5:B34) -> -54.54545455 | Q10: =NPV(O8,F5:F34) -> -54.54545455
A11: 7 | B11: 0 | F11: 0 | M11: 0 | N11: 0
A12: 8 | B12: 0 | C12: =C5 -> 0 | D12: =D5 -> 0 | F12: 0 | M12: 0 | N12: 0
A13: 9 | B13: 0 | D13: =D6 -> 0 | F13: 0 | M13: 0 | N13: 0
A14: 10 | B14: 0 | D14: =D7 -> 0 | F14: 0 | M14: 0 | N14: 0
A15: 11 | B15: 0 | F15: 0 | M15: 0 | N15: 0 | O15: notes:
A16: 12 | B16: 0 | F16: 0 | G16: =(I44*J44*1.1)-(B42) -> 0 | H16: =H5 -> 0 | L16: =L5 -> 465 | M16: 465 | N16: 465 | O16: forest conversion considered separately
A17: 13 | B17: 0 | F17: 0 | H17: =H6 -> 0 | L17: =L6 -> 258 | M17: 258 | N17: 258 | O17: another 20 days for land preparation
A18: 14 | B18: 0 | F18: 0 | H18: =H7 -> 0 | L18: =L7 -> 258 | M18: 258 | N18: 258 | O18: longer (8yr) fallow has 10% higher yield of rice due to soil fertility and fewer weeds
A19: 15 | B19: 0 | C19: =C12 -> 0 | D19: =D12 -> 0 | F19: 0 | M19: 0 | N19: 0 | O19: initial year no higher yield b/c of remaining trunks in field that reduce area
A20: 16 | B20: 0 | D20: =D13 -> 0 | F20: 0 | M20: 0 | N20: 0 | O20: farmily vs. purchased labor dependent upon particular farm
A21: 17 | B21: 0 | D21: =D14 -> 0 | F21: 0 | M21: 0 | N21: 0
A22: 18 | B22: 0 | F22: 0 | M22: 0 | N22: 0
A23: 19 | B23: 0 | F23: 0 | M23: 0 | N23: 0
A24: 20 | B24: 0 | F24: 0 | M24: 0 | N24: 0
A25: 21 | B25: 0 | F25: 0 | M25: 0 | N25: 0
A26: 22 | B26: 0 | C26: =C19 -> 0 | D26: =D5 -> 0 | F26: 0 | M26: 0 | N26: 0
A27: 23 | B27: 0 | D27: =D6 -> 0 | F27: 0 | G27: =G16 -> 0 | H27: =H5 -> 0 | L27: =L16 -> 465 | M27: 465 | N27: 465
A28: 24 | B28: 0 | D28: =D7 -> 0 | F28: 0 | H28: =H6 -> 0 | L28: =L17 -> 258 | M28: 258 | N28: 258
A29: 25 | B29: 0 | F29: 0 | H29: =H7 -> 0 | L29: =L18 -> 258 | M29: 258 | N29: 258
A30: 26 | B30: 0 | F30: 0 | M30: 0 | N30: 0
A31: 27 | B31: 0 | F31: 0 | M31: 0 | N31: 0
A32: 28 | B32: 0 | F32: 0 | M32: 0 | N32: 0
A33: 29 | B33: 0 | C33: =C26 -> 0 | D33: =D5 -> 0 | F33: 0 | M33: 0 | N33: 0
A34: 30 | B34: 0 | D34: =D6 -> 0 | F34: 0 | M34: 0 | N34: 0

Sheet Cocoa
A1: Cocoa
A2: per hectare basis
A3: Summary
A4: Net income ($/ha/yr) | C4: =C5-C6 -> 96.6 | E4: not including establishment costs
A5: Gross income | C5: =B10*B14 -> 720
A6: Production costs | C6: =C70 -> 623.4
D8: key adjustable parameters in yellow cells
A9: Production
A10: Yield | B10: 600 | C10: kg/ha
A12: Prices of inputs (US$) | E12: Price variation
A13: Item | B13: Price | C13: Unit | D13: Min | E13: Max | F13: Notes/questions
A14: Cocoa | B14: 1.2 | C14: kg | F14: farmgate or market; price variation
A16: Labor (wage rate) | B16: 3 | C16: day | F16: social benefits included?
A17: Land (rental rate) | B17: 10 | C17: hectare | F17: depends on land quality and access
A19: Harvest transport | B19: 0.1 | C19: kg farm-mkt | F19: = 0 if farm gate sale
F21: Application rate
A22: Seed/plant | B22: 1 | C22: seed/plant | F22: 600 | G22: plants/ha
A23: Fertilizer | B23: 2 | C23: kg | F23: 30 | G23: kg/ha
A24: Pesticides | B24: 25 | C24: liter | F24: 2 | G24: liter/ha
A25: Herbicides | B25: 0 | C25: liter | F25: 0 | G25: liter/ha
A27: Costs
A28: Establishment | B28: quantity | C28: cost | H28: Tools | I28: Price | J28: Duration | K28: Area used | L28: Cost/year
A29: Labor | D29: family | E29: hired | H29: Machete | I29: 4 | J29: 2 | K29: 5 | L29: =I29/J29/K29 -> 0.4
A30: preparation | B30: 10 | C30: =B30*B$16 -> 30 | D30: 10 | E30: 0 | H30: Shovel | I30: 5 | J30: 1 | K30: 5 | L30: =I30/J30/K30 -> 1
A31: planting | B31: =D31+E31 -> 20 | C31: =B31*B$16 -> 60 | D31: 8 | E31: 12 | H31: Sprayer | I31: 20 | J31: 1 | K31: 5 | L31: =I31/J31/K31 -> 4
A32: nursery | B32: =D32+E32 -> 0 | C32: =B32*B$16 -> 0 | D32: 0 | E32: 0 | H32: Units | I32: US$ | J32: years | K32: ha | L32: $/ha
A33: Subtotal Labor | B33: =SUM(B30:B32) -> 30 | C33: =SUM(C30:C32) -> 90
A34: Capital Inputs*
A35: Machete | C35: =L29 -> 0.4
A36: Shovel | C36: =L30 -> 1
A37: Sprayer | C37: =L31 -> 4
A38: Seeds/plants | B38: 600 | C38: =B38*B22 -> 600
A39: Fertilizer | B39: =F23 -> 30 | C39: =B39*B23 -> 60
A40: Pesticides | B40: =F24 -> 2 | C40: =B40*B24 -> 50
A41: Herbicides | B41: =F25 -> 0 | C41: =B41*B25 -> 0
A42: Machinery rental
A43: Land
A44: Rental rate | C44: =B17 -> 10
A45: Total est. costs | C45: =SUM(C33:C44) -> 815.4
A47: Replanting (year 21) | C47: =C45 -> 815.4
A49: Production/Maintenance | B49: quantity | C49: cost
A50: Labor | D50: family | E50: hired
A51: Weeding | B51: =D51+E51 -> 18 | C51: =B51*B$16 -> 54 | D51: 8 | E51: 10
A52: Ground circles | B52: =D52+E52 -> 0 | C52: =B52*B$16 -> 0
A53: Row maintenance | B53: 0 | C53: 0
A54: Pruning | B54: 1 | C54: 3 | D54: 1
A55: Drying | B55: 32 | C55: 96 | D55: 32
A56: Fertilizing | B56: 1 | C56: 3 | D56: 1
A57: Phytosanitary control | B57: 4 | C57: 12 | D57: 4
A58: Harvest | B58: 90 | C58: 270 | D58: 30 | E58: 60 | F58: should be adjusted if large increase/decrease
A59: Subtotal labor | B59: =SUM(B51:B58) -> 146 | C59: =SUM(C51:C58) -> 438
A60: Inputs
A61: Fertilizer | B61: 30 | C61: =B61*B23 -> 60
A62: Pesticides | B62: 2 | C62: =B62*B24 -> 50
A63: Herbicides
A64: Tools | C64: =SUM(C35:C37) -> 5.4 | F64: sum of establishment cost of tools
A65: Land
A66: Rental cost/value | C66: =B17 -> 10
A67: Transport
A68: Farm to market | B68: =B10 -> 600 | C68: =B68*B19 -> 60
A70: Total costs production/maintenance | C70: =SUM(C59:C68) -> 623.4
A72: year | B72: 1 | C72: =B72+1 -> 2 | D72: =C72+1 -> 3 | E72: 4 | F72: 5 | G72: 6 | H72: 7 | I72: 8 | J72: 9 | K72: 10 | L72: 11 | M72: 12 | N72: 13 | O72: 14 | P72: 15 | Q72: 16 | R72: 17 | S72: 18 | T72: 19 | U72: 20 | V72: 21 | W72: 22 | X72: 23 | Y72: 24 | Z72: 25 | AA72: 26 | AB72: 27 | AC72: 28 | AD72: 29 | AE72: 30
A73: costs | B73: =C45 -> 815.4 | C73: =0.12*C70 -> 74.808 | D73: =0.25*C70 -> 155.85 | E73: =0.7*C70 -> 436.38 | F73: =C70 -> 623.4 | G73: =F73 -> 623.4 | H73: =G73 -> 623.4 | I73: 623.4 | J73: 623.4 | K73: 623.4 | L73: 623.4 | M73: 623.4 | N73: 623.4 | O73: 623.4 | P73: 623.4 | Q73: 623.4 | R73: 623.4 | S73: 623.4 | T73: 623.4 | U73: 623.4 | V73: 623.4 | W73: 623.4 | X73: 623.4 | Y73: 623.4 | Z73: 623.4 | AA73: 623.4 | AB73: 623.4 | AC73: 623.4 | AD73: 623.4 | AE73: 623.4
A74: yield | B74: 0 | C74: 0 | D74: 200 | E74: 600 | F74: =B10 -> 600 | G74: =F74 -> 600 | H74: =G74 -> 600 | I74: =H74 -> 600 | J74: =I74 -> 600 | K74: 600 | L74: 600 | M74: 600 | N74: 600 | O74: 600 | P74: 600 | Q74: 600 | R74: 600 | S74: 600 | T74: 600 | U74: 600 | V74: 600 | W74: 600 | X74: 600 | Y74: 600 | Z74: 600 | AA74: 600 | AB74: 600 | AC74: 600 | AD74: 600 | AE74: 600
A75: gross income | B75: =B74*$B14 -> 0 | C75: =C74*$B14 -> 0 | D75: 240 | E75: 720 | F75: 720 | G75: 720 | H75: 720 | I75: 720 | J75: 720 | K75: 720 | L75: 720 | M75: 720 | N75: 720 | O75: 720 | P75: 720 | Q75: 720 | R75: 720 | S75: 720 | T75: 720 | U75: 720 | V75: 720 | W75: 720 | X75: 720 | Y75: 720 | Z75: 720 | AA75: 720 | AB75: 720 | AC75: 720 | AD75: 720 | AE75: 720
A76: net income, profit | B76: =B75-B73 -> -815.4 | C76: =C75-C73 -> -74.808 | D76: =D75-D73 -> 84.15 | E76: =E75-E73 -> 283.62 | F76: =F75-F73 -> 96.6 | G76: 96.6 | H76: 96.6 | I76: 96.6 | J76: 96.6 | K76: 96.6 | L76: 96.6 | M76: 96.6 | N76: 96.6 | O76: 96.6 | P76: 96.6 | Q76: 96.6 | R76: 96.6 | S76: 96.6 | T76: 96.6 | U76: 96.6 | V76: 96.6 | W76: 96.6 | X76: 96.6 | Y76: 96.6 | Z76: 96.6 | AA76: 96.6 | AB76: 96.6 | AC76: 96.6 | AD76: 96.6 | AE76: 96.6
A78: labor | B78: =B33 -> 30 | C78: 24 | D78: 53 | E78: 112 | F78: =B59 -> 146 | G78: =F78 -> 146 | H78: =G78 -> 146 | I78: 146 | J78: 146 | K78: 146 | L78: 146 | M78: 146 | N78: 146 | O78: 146 | P78: 146 | Q78: 146 | R78: 146 | S78: 146 | T78: 146 | U78: 146 | V78: 146 | W78: 146 | X78: 146 | Y78: 146 | Z78: 146 | AA78: 146 | AB78: 146 | AC78: 146 | AD78: 146 | AE78: 146
A79: labor income | B79: =B78*3 -> 90 | C79: =C78*3 -> 72 | D79: 159 | E79: 336 | F79: 438 | G79: 438 | H79: 438 | I79: 438 | J79: 438 | K79: 438 | L79: 438 | M79: 438 | N79: 438 | O79: 438 | P79: 438 | Q79: 438 | R79: 438 | S79: 438 | T79: 438 | U79: 438 | V79: 438 | W79: 438 | X79: 438 | Y79: 438 | Z79: 438 | AA79: 438 | AB79: 438 | AC79: 438 | AD79: 438 | AE79: 438
A80: income | B80: =B79+B76 -> -725.4 | C80: =C79+C76 -> -2.808 | D80: 243.15 | E80: 619.62 | F80: 534.6 | G80: 534.6 | H80: 534.6 | I80: 534.6 | J80: 534.6 | K80: 534.6 | L80: 534.6 | M80: 534.6 | N80: 534.6 | O80: 534.6 | P80: 534.6 | Q80: 534.6 | R80: 534.6 | S80: 534.6 | T80: 534.6 | U80: 534.6 | V80: 534.6 | W80: 534.6 | X80: 534.6 | Y80: 534.6 | Z80: 534.6 | AA80: 534.6 | AB80: 534.6 | AC80: 534.6 | AD80: 534.6 | AE80: 534.6
A81: % of annual maintenance estimate | C81: =C73/$F73 -> 0.12 | D81: =D73/$F73 -> 0.25 | E81: =E73/$F73 -> 0.7 | F81: =F73/$F73 -> 1
A83: Calendar family labor
A84: Year 1
A85: Actitivity | B85: Aug | C85: Sep | D85: Oct | E85: Nov | F85: Dec | G85: Jan | H85: Feb | I85: Mar | J85: Apr | K85: May | L85: Jun | M85: Jul | N85: Total
A86: Preparation | E86: 4 | N86: =SUM(B86:M86) -> 4
A87: Planting | E87: 8 | N87: 8
A88: Weeding | N88: 0
A89: Harvest | N89: 0
A90: Control | H90: 4 | N90: 4
A91: Transport | N91: 0
A92: Total | B92: =SUM(B86:B91) -> 0 | C92: 0 | D92: 0 | E92: 12 | F92: 0 | G92: 0 | H92: 4 | I92: 0 | J92: 0 | K92: 0 | L92: 0 | M92: 0 | N92: 16
A94: Year 2
A95: Actitivity | B95: Aug | C95: Sep | D95: Oct | E95: Nov | F95: Dec | G95: Jan | H95: Feb | I95: Mar | J95: Apr | K95: May | L95: Jun | M95: Jul | N95: Total
A96: Preparation | N96: =SUM(B96:M96) -> 0
A97: Planting | N97: 0
A98: Weeding | N98: 0
A99: Harvest | N99: 0
A100: Control | H100: 4 | N100: 4
A101: Transport | N101: 0
A102: Total | B102: =SUM(B96:B101) -> 0 | C102: 0 | D102: 0 | E102: 0 | F102: 0 | G102: 0 | H102: 4 | I102: 0 | J102: 0 | K102: 0 | L102: 0 | M102: 0 | N102: 4
A104: Year 3
A105: Actitivity | B105: Aug | C105: Sep | D105: Oct | E105: Nov | F105: Dec | G105: Jan | H105: Feb | I105: Mar | J105: Apr | K105: May | L105: Jun | M105: Jul | N105: Total
A106: Preparation | N106: =SUM(B106:M106) -> 0
A107: Planting | N107: 0
A108: Weeding | N108: 0
A109: Harvest | B109: 1 | C109: 1 | D109: 1 | L109: 1 | M109: 2 | N109: 6
A110: Control | B110: 2 | C110: 1 | D110: 1 | H110: 4 | L110: 1 | M110: 2 | N110: 11
A111: Transport | N111: 0
A112: Total | B112: =SUM(B106:B111) -> 3 | C112: 2 | D112: 2 | E112: 0 | F112: 0 | G112: 0 | H112: 4 | I112: 0 | J112: 0 | K112: 0 | L112: 2 | M112: 4 | N112: 17
A114: Year 4
A115: Actitivity | B115: Aug | C115: Sep | D115: Oct | E115: Nov | F115: Dec | G115: Jan | H115: Feb | I115: Mar | J115: Apr | K115: May | L115: Jun | M115: Jul | N115: Total
A116: Preparation | N116: =SUM(B116:M116) -> 0
A117: Planting | N117: 0
A118: Weeding | N118: 0
A119: Harvest | B119: 4 | C119: 3 | D119: 3 | L119: 4 | M119: 4 | N119: 18
A120: Control | B120: 4 | C120: 4 | D120: 3 | H120: 4 | L120: 4 | M120: 4 | N120: 23
A121: Transport | N121: 0
A122: Total | B122: =SUM(B116:B121) -> 8 | C122: 7 | D122: 6 | E122: 0 | F122: 0 | G122: 0 | H122: 4 | I122: 0 | J122: 0 | K122: 0 | L122: 8 | M122: 8 | N122: 41
A124: Year 5
A125: Actitivity | B125: Aug | C125: Sep | D125: Oct | E125: Nov | F125: Dec | G125: Jan | H125: Feb | I125: Mar | J125: Apr | K125: May | L125: Jun | M125: Jul | N125: Total
A126: Preparation | N126: =SUM(B126:M126) -> 0
A127: Planting | N127: 0
A128: Weeding | N128: 0
A129: Harvest | B129: 6 | C129: 6 | D129: 6 | L129: 6 | M129: 6 | N129: 30
A130: Control | B130: 7 | C130: 6 | D130: 6 | H130: 4 | L130: 6 | M130: 7 | N130: 36
A131: Transport | N131: 0
A132: Total | B132: =SUM(B126:B131) -> 13 | C132: 12 | D132: 12 | E132: 0 | F132: 0 | G132: 0 | H132: 4 | I132: 0 | J132: 0 | K132: 0 | L132: 12 | M132: 13 | N132: 66
A134: Year 6
A135: Actitivity | B135: Aug | C135: Sep | D135: Oct | E135: Nov | F135: Dec | G135: Jan | H135: Feb | I135: Mar | J135: Apr | K135: May | L135: Jun | M135: Jul | N135: Total
A136: Preparation | N136: =SUM(B136:M136) -> 0
A137: Planting | N137: 0
A138: Weeding | N138: 0
A139: Harvest | B139: 6 | C139: 6 | D139: 6 | L139: 6 | M139: 6 | N139: 30
A140: Control | B140: 7 | C140: 6 | D140: 6 | H140: 4 | L140: 6 | M140: 7 | N140: 36
A141: Transport | N141: 0
A142: Total | B142: =SUM(B136:B141) -> 13 | C142: 12 | D142: 12 | E142: 0 | F142: 0 | G142: 0 | H142: 4 | I142: 0 | J142: 0 | K142: 0 | L142: 12 | M142: 13 | N142: 66
A144: Year 7
A145: Actitivity | B145: Aug | C145: Sep | D145: Oct | E145: Nov | F145: Dec | G145: Jan | H145: Feb | I145: Mar | J145: Apr | K145: May | L145: Jun | M145: Jul | N145: Total
A146: Preparation | N146: =SUM(B146:M146) -> 0
A147: Planting | N147: 0
A148: Weeding | N148: 0
A149: Harvest | B149: 6 | C149: 6 | D149: 6 | L149: 6 | M149: 6 | N149: 30
A150: Control | B150: 7 | C150: 6 | D150: 6 | H150: 4 | L150: 6 | M150: 7 | N150: 36
A151: Transport | N151: 0
A152: Total | B152: =SUM(B146:B151) -> 13 | C152: 12 | D152: 12 | E152: 0 | F152: 0 | G152: 0 | H152: 4 | I152: 0 | J152: 0 | K152: 0 | L152: 12 | M152: 13 | N152: 66
A154: Year 8
A155: Actitivity | B155: Aug | C155: Sep | D155: Oct | E155: Nov | F155: Dec | G155: Jan | H155: Feb | I155: Mar | J155: Apr | K155: May | L155: Jun | M155: Jul | N155: Total
A156: Preparation | N156: =SUM(B156:M156) -> 0
A157: Planting | N157: 0
A158: Weeding | N158: 0
A159: Harvest | B159: 6 | C159: 6 | D159: 6 | L159: 6 | M159: 6 | N159: 30
A160: Control | B160: 7 | C160: 6 | D160: 6 | H160: 4 | L160: 6 | M160: 7 | N160: 36
A161: Transport | N161: 0
A162: Total | B162: =SUM(B156:B161) -> 13 | C162: 12 | D162: 12 | E162: 0 | F162: 0 | G162: 0 | H162: 4 | I162: 0 | J162: 0 | K162: 0 | L162: 12 | M162: 13 | N162: 66
A164: Year 9
A165: Actitivity | B165: Aug | C165: Sep | D165: Oct | E165: Nov | F165: Dec | G165: Jan | H165: Feb | I165: Mar | J165: Apr | K165: May | L165: Jun | M165: Jul | N165: Total
A166: Preparation | N166: =SUM(B166:M166) -> 0
A167: Planting | N167: 0
A168: Weeding | N168: 0
A169: Harvest | B169: 6 | C169: 6 | D169: 6 | L169: 6 | M169: 6 | N169: 30
A170: Control | B170: 7 | C170: 6 | D170: 6 | H170: 4 | L170: 6 | M170: 7 | N170: 36
A171: Transport | N171: 0
A172: Total | B172: =SUM(B166:B171) -> 13 | C172: 12 | D172: 12 | E172: 0 | F172: 0 | G172: 0 | H172: 4 | I172: 0 | J172: 0 | K172: 0 | L172: 12 | M172: 13 | N172: 66
A174: Year 10
A175: Actitivity | B175: Aug | C175: Sep | D175: Oct | E175: Nov | F175: Dec | G175: Jan | H175: Feb | I175: Mar | J175: Apr | K175: May | L175: Jun | M175: Jul | N175: Total
A176: Preparation | N176: =SUM(B176:M176) -> 0
A177: Planting | N177: 0
A178: Weeding | N178: 0
A179: Harvest | B179: 6 | C179: 6 | D179: 6 | L179: 6 | M179: 6 | N179: 30
A180: Control | B180: 7 | C180: 6 | D180: 6 | H180: 4 | L180: 6 | M180: 7 | N180: 36
A181: Transport | N181: 0
A182: Total | B182: =SUM(B176:B181) -> 13 | C182: 12 | D182: 12 | E182: 0 | F182: 0 | G182: 0 | H182: 4 | I182: 0 | J182: 0 | K182: 0 | L182: 12 | M182: 13 | N182: 66
A184: Calendar Hired Labor
A185: Year 1
A186: Actitivity | B186: Aug | C186: Sep | D186: Oct | E186: Nov | F186: Dec | G186: Jan | H186: Feb | I186: Mar | J186: Apr | K186: May | L186: Jun | M186: Jul | N186: Total
A187: Preparation | N187: =SUM(B187:M187) -> 0
A188: Planting | E188: 12 | N188: 12
A189: Weeding | B189: 10 | H189: 10 | N189: 20
A190: Harvest | N190: 0
A191: Control | N191: 0
A192: Transport | N192: 0
A193: Total | B193: =SUM(B187:B192) -> 10 | C193: 0 | D193: 0 | E193: 12 | F193: 0 | G193: 0 | H193: 10 | I193: 0 | J193: 0 | K193: 0 | L193: 0 | M193: 0 | N193: 32
A195: Year 2
A196: Actitivity | B196: Aug | C196: Sep | D196: Oct | E196: Nov | F196: Dec | G196: Jan | H196: Feb | I196: Mar | J196: Apr | K196: May | L196: Jun | M196: Jul | N196: Total
A197: Preparation | N197: =SUM(B197:M197) -> 0
A198: Planting | N198: 0
A199: Weeding | B199: 10 | E199: 10 | H199: 10 | K199: 10 | N199: 40
A200: Harvest | N200: 0
A201: Control | N201: 0
A202: Transport | N202: 0
A203: Total | B203: =SUM(B197:B202) -> 10 | C203: 0 | D203: 0 | E203: 10 | F203: 0 | G203: 0 | H203: 10 | I203: 0 | J203: 0 | K203: 10 | L203: 0 | M203: 0 | N203: 40
A205: Year 3
A206: Actitivity | B206: Aug | C206: Sep | D206: Oct | E206: Nov | F206: Dec | G206: Jan | H206: Feb | I206: Mar | J206: Apr | K206: May | L206: Jun | M206: Jul | N206: Total
A207: Preparation | N207: =SUM(B207:M207) -> 0
A208: Planting | N208: 0
A209: Weeding | B209: 10 | E209: 10 | H209: 10 | K209: 10 | N209: 40
A210: Harvest | B210: 2 | C210: 2 | D210: 2 | L210: 2 | M210: 4 | N210: 12
A211: Control | N211: 0
A212: Transport | N212: 0
A213: Total | B213: =SUM(B207:B212) -> 12 | C213: 2 | D213: 2 | E213: 10 | F213: 0 | G213: 0 | H213: 10 | I213: 0 | J213: 0 | K213: 10 | L213: 2 | M213: 4 | N213: 52
A215: Year 4
A216: Actitivity | B216: Aug | C216: Sep | D216: Oct | E216: Nov | F216: Dec | G216: Jan | H216: Feb | I216: Mar | J216: Apr | K216: May | L216: Jun | M216: Jul | N216: Total
A217: Preparation | N217: =SUM(B217:M217) -> 0
A218: Planting | N218: 0
A219: Weeding | H219: 10 | N219: 10
A220: Harvest | B220: 7 | C220: 7 | D220: 7 | L220: 7 | M220: 8 | N220: 36
A221: Control | N221: 0
A222: Transport | N222: 0
A223: Total | B223: =SUM(B217:B222) -> 7 | C223: 7 | D223: 7 | E223: 0 | F223: 0 | G223: 0 | H223: 10 | I223: 0 | J223: 0 | K223: 0 | L223: 7 | M223: 8 | N223: 46
A225: Year 5
A226: Actitivity | B226: Aug | C226: Sep | D226: Oct | E226: Nov | F226: Dec | G226: Jan | H226: Feb | I226: Mar | J226: Apr | K226: May | L226: Jun | M226: Jul | N226: Total
... 52 more rows

Sheet Oil palm
A1: Oil palm
A2: per hectare
A3: Summary | D3: key adjustable parameters in yellow cells
A4: Net income | B4: =B5-B6 -> 80.8 | C4: US$/ha
A5: Gross Income | B5: =B9*B13 -> 344
A6: Production costs | B6: =C63 -> 263.2 | D6: not including establishment costs
A8: Production
A9: Racime yield | B9: 8 | C9: t/ha | E9: 6 tons reported, 14 tons expected potential
A11: Prices (US$)
A12: Item | B12: Price | C12: Unit | D12: Min | E12: Max | F12: Notes/questions
A13: Racime (bunch) | B13: 43 | C13: ton | F13: farmgate or market; price variation
A15: Labor (wage rate) | B15: 3 | C15: day | F15: social benefits included?
A17: Harvest transport | B17: 0 | C17: kg farm-mkt | F17: = 0 if farm gate sale
F19: Application rate
A20: Seed/plant | B20: 1 | C20: seed/plant | F20: 0 | G20: plants/ha
A21: Fertilizer | B21: 2 | C21: kg | F21: 50 | G21: kg/ha
A22: Pesticides | B22: 25 | C22: liter | F22: 0 | G22: liter/ha
A23: Herbicides | B23: 0 | C23: liter | F23: 0 | G23: liter/ha
A25: Costs
A26: Establishment | B26: workdays | C26: cost ($/ha) | D26: family | E26: hired
A27: Labor | H27: Tools | I27: Price | J27: Duration | K27: Area used | L27: Cost/year
A28: preparation | B28: =D28+E28 -> 34 | C28: =B28*B$15 -> 102 | D28: 34 | E28: 0 | H28: Machete | I28: 4 | J28: 2 | K28: 5 | L28: =I28/J28/K28 -> 0.4
A29: planting | B29: =D29+E29 -> 34 | C29: =B29*B$15 -> 102 | D29: 34 | E29: 0 | H29: Shovel | I29: 5 | J29: 1 | K29: 5 | L29: =I29/J29/K29 -> 1
A30: nursery | B30: =D30+E30 -> 20 | C30: =B30*B$15 -> 60 | D30: 20 | E30: 0 | H30: Sprayer | I30: 20 | J30: 1 | K30: 5 | L30: =I30/J30/K30 -> 4
A31: Subtotal labor | B31: =SUM(B28:B30) -> 88 | C31: =B31*B$15 -> 264 | H31: Units | I31: US$ | J31: years | K31: ha | L31: $/ha
A32: Capital Inputs*
A33: Machete | C33: =L28 -> 0.4
A34: Shovel | C34: =L29 -> 1
A35: Sprayer | C35: =L30 -> 4
A36: Seeds/plants | B36: =F20 -> 0 | C36: =B36*B20 -> 0
A37: Fertilizer | B37: =F21 -> 50 | C37: =B37*B21 -> 100
A38: Pesticides | B38: =F22 -> 0 | C38: =B38*B22 -> 0
A39: Herbicides | B39: =F22 -> 0 | C39: =B39*B22 -> 0
A40: Machinery rental | B40: 0 | C40: 0
A41: Land
A42: Rental rate | C42: 0
A43: Total est. costs | C43: =SUM(C31:C42) -> 369.4
A45: Production/Maintenance | B45: workdays | C45: cost
A46: Labor | D46: family | E46: hired
A47: Weeding | B47: =D47+E47 -> 5.7 | C47: =B47*B$15 -> 17.1 | D47: 5.7 | E47: 0
A48: Ground circles | B48: =D48+E48 -> 2.1 | C48: =B48*B$15 -> 6.3 | D48: 2.1 | E48: 0
A49: Row maintenance | B49: 1.4 | C49: 4.2 | D49: 1.4 | E49: 0
A50: Pruning | B50: 1.9 | C50: 5.7 | D50: 1.9 | E50: 0
A51: Leaf stacking | B51: 1.9 | C51: 5.7 | D51: 1.9 | E51: 0
A52: Fertilizing | B52: 1.4 | C52: 4.2 | D52: 1.4 | E52: 0
A53: Phytosanitary control | B53: 2 | C53: 6 | D53: 2 | E53: 0
A54: Harvest | B54: 28 | C54: 84 | D54: 28 | E54: 0 | F54: should be adjusted if large increase/decrease
A55: Subtotal labor | B55: =SUM(B47:B54) -> 44.4 | C55: =SUM(C47:C54) -> 133.2
A56: Inputs
A57: Fertilizer | B57: =F21 -> 50 | C57: =B57*B21 -> 100
A58: Pesticides | B58: =F22 -> 0 | C58: =B58*B22 -> 0
A59: Herbicides | B59: =F23 -> 0 | C59: =B59*B23 -> 0
A60: Tools | C60: 20 | F60: sum of establishment cost of tools
A61: Land
A62: Rental cost/value | C62: 10
A63: Total costs production/maintenance | C63: =SUM(C55:C62) -> 263.2
A65: year | B65: 1 | C65: =B65+1 -> 2 | D65: =C65+1 -> 3 | E65: 4 | F65: 5 | G65: 6 | H65: 7 | I65: 8 | J65: 9 | K65: 10 | L65: 11 | M65: 12 | N65: 13 | O65: 14 | P65: 15 | Q65: 16 | R65: 17 | S65: 18 | T65: 19 | U65: 20 | V65: 21 | W65: 22 | X65: 23 | Y65: 24 | Z65: 25 | AA65: 26 | AB65: 27 | AC65: 28 | AD65: 29 | AE65: 30
A66: costs | B66: =C43 -> 369.4 | C66: 70 | D66: 70 | E66: 70 | F66: =0.57*C$63 -> 150.024 | G66: =0.71*C$63 -> 186.872 | H66: =0.85*C$63 -> 223.72 | I66: =C63 -> 263.2 | J66: =I66 -> 263.2 | K66: =J66 -> 263.2 | L66: 263.2 | M66: 263.2 | N66: 263.2 | O66: 263.2 | P66: 263.2 | Q66: 263.2 | R66: 263.2 | S66: 263.2 | T66: 263.2 | U66: 263.2 | V66: 454 | W66: 19 | X66: 19 | Y66: 19 | Z66: 24 | AA66: 75 | AB66: 110 | AC66: 144 | AD66: 144 | AE66: 144
A67: yield | B67: 0 | C67: 0 | D67: 0 | E67: 0 | F67: =0.57*B9 -> 4.56 | G67: =0.71*B9 -> 5.68 | H67: =0.85*B9 -> 6.8 | I67: =B9 -> 8 | J67: =I67 -> 8 | K67: 8 | L67: 8 | M67: 8 | N67: 8 | O67: 8 | P67: 8 | Q67: 8 | R67: 8 | S67: 8 | T67: 8 | U67: 8 | V67: 0 | W67: 0 | X67: 0 | Y67: 0 | Z67: =F67 -> 4.56 | AA67: =G67 -> 5.68 | AB67: 6.8 | AC67: 8 | AD67: 8 | AE67: 8
A68: gross income | B68: 0 | C68: 0 | D68: 0 | E68: 0 | F68: =F67*$B13 -> 196.08 | G68: 244.24 | H68: 292.4 | I68: 344 | J68: 344 | K68: 344 | L68: 344 | M68: 344 | N68: 344 | O68: 344 | P68: 344 | Q68: 344 | R68: 344 | S68: 344 | T68: 344 | U68: 344 | V68: 0 | W68: 0 | X68: 0 | Y68: 0 | Z68: =F68 -> 196.08 | AA68: 244.24 | AB68: 292.4 | AC68: 344 | AD68: 344 | AE68: 344
A69: net income // profit | B69: =B68-B66 -> -369.4 | C69: =C68-C66 -> -70 | D69: =D68-D66 -> -70 | E69: =E68-E66 -> -70 | F69: =F68-F66 -> 46.056 | G69: 57.368 | H69: 68.68 | I69: 80.8 | J69: 80.8 | K69: 80.8 | L69: 80.8 | M69: 80.8 | N69: 80.8 | O69: 80.8 | P69: 80.8 | Q69: 80.8 | R69: 80.8 | S69: 80.8 | T69: 80.8 | U69: 80.8 | V69: -454 | W69: -19 | X69: -19 | Y69: -19 | Z69: 172.08 | AA69: 169.24 | AB69: 182.4 | AC69: 200 | AD69: 200 | AE69: 200
A71: labor | B71: =B31 -> 88 | C71: 15 | D71: 17 | E71: 19.6 | F71: 29.3 | G71: 36.7 | H71: 44 | I71: 44 | J71: 44 | K71: 44 | L71: 44 | M71: 44 | N71: 44 | O71: 44 | P71: 44 | Q71: 44 | R71: 44 | S71: 44 | T71: 44 | U71: 44 | V71: 44 | W71: 44 | X71: 44 | Y71: 44 | Z71: 44 | AA71: 44 | AB71: 44 | AC71: 44 | AD71: 44 | AE71: 44
A72: labor income | B72: =B71*3 -> 264 | C72: =C71*3 -> 45 | D72: 51 | E72: 58.8 | F72: 87.9 | G72: 110.1 | H72: 132 | I72: 132 | J72: 132 | K72: 132 | L72: 132 | M72: 132 | N72: 132 | O72: 132 | P72: 132 | Q72: 132 | R72: 132 | S72: 132 | T72: 132 | U72: 132 | V72: 132 | W72: 132 | X72: 132 | Y72: 132 | Z72: 132 | AA72: 132 | AB72: 132 | AC72: 132 | AD72: 132 | AE72: 132
A73: % annual maintenance estimate | C73: =C71/$B55 -> 0.3378378378 | D73: 0.3828828829 | E73: 0.4414414414 | F73: 0.6599099099 | G73: 0.8265765766 | H73: 0.990990991
A75: Sources: OLAMSA, CTARU
A76: income | B76: =B72+B69 -> -105.4 | C76: =C72+C69 -> -25 | D76: -19 | E76: -11.2 | F76: 133.956 | G76: 167.468 | H76: 200.68 | I76: 212.8 | J76: 212.8 | K76: 212.8 | L76: 212.8 | M76: 212.8 | N76: 212.8 | O76: 212.8 | P76: 212.8 | Q76: 212.8 | R76: 212.8 | S76: 212.8 | T76: 212.8 | U76: 212.8 | V76: -322 | W76: 113 | X76: 113 | Y76: 113 | Z76: 304.08 | AA76: 301.24 | AB76: 314.4 | AC76: 332 | AD76: 332 | AE76: 332

Sheet Pastures
A1: Dual purpose (beef and milk) farm Pucallpa, Peru
A2: per hectare
E3: key adjustable parameters in yellow cells
A4: Summary | B4: traditional/degraded pastures | D4: improved pastures
A5: Net income ($/ha/yr) | B5: =B39 -> 48 | D5: =D39 -> 84 | F5: not including establishment costs
A6: =A34 -> Gross income | B6: =B34 -> 106 | D6: =D34 -> 159
A7: Production costs | B7: =B32 -> 58 | D7: =D32 -> 75
A9: Prices (US$) | F9: Notes
A10: Milk ($/kg) | B10: 0.32
A11: Meat ($/kg culled cow) | B11: 0.6
A12: Labor ($/day)a | B12: 3 | D12: productivity | F12: Could be considered higher if social benefits included
A13: Land ($/ha) | B13: 200 | D13: multiplier
A14: Animal unit AU ($) | B14: 500 | D14: 1.5
A16: Animal units (animals/ha) | B16: 0.6 | D16: =B16*D$14 -> 0.9
A17: Establishment costs | C17: labor | E17: labor
A18: Livestock (AU*$500/AU) | B18: =B16*B14 -> 300 | D18: =D16*B14 -> 450 | F18: could be lower since often raised on-farm
A19: Shed, corral, equipment | B19: 35 | D19: 53
A20: Preparation | B20: 0 | D20: 0 | F20: could be higher if converting forest
A21: Pasture seeding | B21: 3 | C21: 1 | D21: 120 | E21: 5
A22: Fencesb | B22: 84 | C22: 3 | D22: 84 | E22: 3 | F22: could be higher or lower depending on farm size
A23: Total | B23: =SUM(B18:B22) -> 422 | C23: =SUM(C18:C22) -> 4 | D23: =SUM(D18:D22) -> 707 | E23: =SUM(E18:E22) -> 8
A25: Production costs
A26: Labor | B26: 20 | C26: 4.5 | D26: =E26*B12 -> 18 | E26: 6
A27: Supplements | B27: 10 | D27: =B27*D$14 -> 15
A28: Animal health | B28: 12 | D28: =B28*D$14 -> 18
A29: Maintenance | B29: 11 | D29: =B29*D$14 -> 16.5
A30: Land rental | B30: 0 | D30: 0
A31: Other | B31: 5 | D31: =B31*D$14 -> 7.5
A32: Total | B32: =SUM(B26:B31) -> 58 | D32: =SUM(D26:D31) -> 75
A34: Gross income | B34: =SUM(B35:B37) -> 106 | D34: =SUM(D35:D37) -> 159
A35: Milk | B35: 64 | D35: =B35*D$14 -> 96
A36: Beef (culled cows) | B36: 17 | D36: =B36*D$14 -> 25.5
A37: Veal | B37: 25 | D37: =B37*D$14 -> 37.5
A39: Net income | B39: =B34-B32 -> 48 | D39: =D34-D32 -> 84
A41: a. Does not include social benefits, estimated at 24%
A42: b. An average of 5280m, $0.90/m, 4 wires & posts at 3m
A43: c. Animal unit (AU) conversion: Cow = 1.0; heifer = 0.7; female calf = 0.3; bull = 1.3.
A44: land rental = 10% land value

Sheet Timber
A1: Timber
A2: per hectare | B2: key adjustable parameters in yellow cells
A4: Profit | B4: =B6-B7 -> 450 | C4: $/ha
A6: Revenues | B6: =B10*B13 -> 3060 | C6: $/ha
A7: Costs | B7: =E23 -> 2610 | C7: $/ha | J7: Other parameter estimates from literature
H8: Range | J8: Bauch 2005 | L8: Southgate | M8: Vera & Schwartzman 2005 | O8: Holmes 1999 | Q8: Verissimo 2002
A9: Parameters | C9: unit | H9: low | I9: high | J9: low | K9: high | L9: 1998 | M9: low | N9: high | O9: low | P9: high | Q9: low | R9: high
A10: Price timber | B10: 120 | C10: $/m3 | H10: =MIN(J10:R10) -> 50 | I10: =MAX(J10:R10) -> 250 | Q10: 50 | R10: 250 | S10: very dependent on timber quality
A11: Quantity harvested | B11: 30 | C11: m3/ha | H11: =MIN(J11:R11) -> 15 | I11: =MAX(J11:R11) -> 40 | J11: 27 | K11: 27 | M11: 15 | N11: 40
A12: Waste | B12: 15 | C12: % | H12: =MIN(J12:R12) -> 7.6 | I12: =MAX(J12:R12) -> 24 | J12: 19 | K12: 19 | O12: 24 | P12: 7.6
A13: Quantity sold | B13: =B11*(100-B12)/100 -> 25.5 | C13: m3
A17: Costs | C17: unit | F17: unit | H17: Range
A18: Harvesting | B18: 35 | C18: $/m3 | E18: =B18*B$11 -> 1050 | F18: $/ha | H18: =MIN(J18:R18) -> 6.2 | I18: =MAX(J18:R18) -> 48.4 | J18: 32.1 | K18: 48.4 | O18: 6.2 | P18: 7 | Q18: 25 | R18: 31
A19: Transportation | B19: 20 | C19: $/m3 | E19: =B19*B$11 -> 600 | F19: $/ha | H19: =MIN(J19:R19) -> 18 | I19: =MAX(J19:R19) -> 47 | J19: 18 | K19: 35 | Q19: 19 | R19: 47
A20: Milling | B20: 24 | C20: $/m3 | E20: =B20*B$11 -> 720 | F20: $/ha | H20: =MIN(J20:R20) -> 33 | I20: =MAX(J20:R20) -> 108 | J20: 67 | K20: 108 | Q20: 33 | R20: 33
A21: Stumpage fee | B21: 8 | C21: $/m3 | E21: =B21*B$11 -> 240 | F21: $/ha | H21: =MIN(J21:R21) -> 5 | I21: =MAX(J21:R21) -> 35 | J21: 8.2 | K21: 8.2 | L21: 35 | M21: 5 | N21: 35 | O21: 9 | P21: 7.6
A23: Total Costs | B23: =SUM(B18:B22) -> 87 | C23: $/m3 | E23: =SUM(E18:E22) -> 2610 | F23: $/ha

Sheet Charcoal
A1: Charcoal
A2: per hectare | B2: key adjustable parameters in yellow cells
C3: unit | D3: Parameters | F3: unit
A4: Profit | B4: =B6-B7 -> 377.88 | C4: $/ha | D4: Price charcoal | E4: 0.081 | F4: $/kg
D5: Quantity harvested | E5: 6480 | F5: kg/ha
A6: Revenues | B6: =E4*E5 -> 524.88 | C6: $/ha | D6: Wage rate | E6: 3 | F6: $/day
A7: Costs | B7: =D12 -> 147 | C7: $/ha
A9: Costs | C9: unit
A10: Labor | B10: 49 | C10: workday | D10: =B10*E6 -> 147 | E10: $/ha
A11: Transport | B11: see below notes
A12: Total Costs | D12: =D10 -> 147 | E12: $/ha
A14: Notes:
A15: analysis assumes no transport
A16: cost for the first two years, since the trees are nearby the farm.
A17: if charcoal activity continues for more than one year,
A18: 8 extra person-days is required for carrying charcoal bags during
A19: years 3 and 4, 16 extra person-days for years
A20: 5 and 6, 24 person-days for years 7 and 8 and
A21: 32 extra person-days for years 9 and 10.
A23: since charcoal production is largely a smallholder farmer activity,
A24: available labor may be severely limited. Therefore charcoal production
A25: should be analyzed within a whole farm context.
A27: Source: Labarta, R., D. White, S. Swinton. Does Charcoal Production
A28: Slow Agricultural Expansion into the Peruvian Amazon Rainforest? World Development, 36 (3):527–540.

Sheet NTFP
A1: Non-timber forest products
A2: NTFP | C2: Other revenue estimates
C3: Godoy | D3: Belcher | E3: Belcher | F3: Belcher | G3: Seroa da Motta 2002
A4: Profit | C4: 1996 US$ | D4: wild | E4: managed | F4: cultivated
A5: 1 | B5: $/ha | C5: 2.7 | D5: 1.8 | E5: 3.8 | F5: 25.6 | G5: 0.2
A8: cost information unknown

Sheet 30-year analysis
A1: Land use | B1: NPV | C1: Land use trajectory | D1: 1 | E1: =D1+1 -> 2 | F1: =E1+1 -> 3 | G1: 4 | H1: 5 | I1: 6 | J1: 7 | K1: 8 | L1: 9 | M1: 10 | N1: 11 | O1: 12 | P1: 13 | Q1: 14 | R1: 15 | S1: 16 | T1: 17 | U1: 18 | V1: 19 | W1: 20 | X1: 21 | Y1: 22 | Z1: 23 | AA1: 24 | AB1: 25 | AC1: 26 | AD1: 27 | AE1: 28 | AF1: 29 | AG1: 30
A3: Oil palm | B3: =NPV($B$18,D3:AG3) -> 245.372564 | C3: Transitional | D3: ='[1]Oil palm'!B69 -> -369.4 | E3: ='[1]Oil palm'!C69 -> -70 | F3: ='[1]Oil palm'!D69 -> -70 | G3: ='[1]Oil palm'!E69 -> -70 | H3: ='[1]Oil palm'!F69 -> 46.056 | I3: ='[1]Oil palm'!G69 -> 57.368 | J3: ='[1]Oil palm'!H69 -> 68.68 | K3: ='[1]Oil palm'!I69 -> 80.8 | L3: ='[1]Oil palm'!J69 -> 80.8 | M3: ='[1]Oil palm'!K69 -> 80.8 | N3: ='[1]Oil palm'!L69 -> 80.8 | O3: ='[1]Oil palm'!M69 -> 80.8 | P3: ='[1]Oil palm'!N69 -> 80.8 | Q3: ='[1]Oil palm'!O69 -> 80.8 | R3: ='[1]Oil palm'!P69 -> 80.8 | S3: ='[1]Oil palm'!Q69 -> 80.8 | T3: ='[1]Oil palm'!R69 -> 80.8 | U3: ='[1]Oil palm'!S69 -> 80.8 | V3: ='[1]Oil palm'!T69 -> 80.8 | W3: ='[1]Oil palm'!U69 -> 80.8 | X3: ='[1]Oil palm'!V69 -> -454 | Y3: ='[1]Oil palm'!W69 -> -19 | Z3: ='[1]Oil palm'!X69 -> -19 | AA3: ='[1]Oil palm'!Y69 -> -19 | AB3: ='[1]Oil palm'!Z69 -> 172.08 | AC3: ='[1]Oil palm'!AA69 -> 169.24 | AD3: ='[1]Oil palm'!AB69 -> 182.4 | AE3: ='[1]Oil palm'!AC69 -> 200 | AF3: ='[1]Oil palm'!AD69 -> 200 | AG3: ='[1]Oil palm'!AE69 -> 200
A4: Cocoa | B4: 604.0422705 | C4: Transitional | D4: =[1]Cocoa!B76 -> -815.4 | E4: =[1]Cocoa!C76 -> -74.808 | F4: =[1]Cocoa!D76 -> 84.15 | G4: =[1]Cocoa!E76 -> 283.62 | H4: =[1]Cocoa!F76 -> 96.6 | I4: =[1]Cocoa!G76 -> 96.6 | J4: =[1]Cocoa!H76 -> 96.6 | K4: =[1]Cocoa!I76 -> 96.6 | L4: =[1]Cocoa!J76 -> 96.6 | M4: =[1]Cocoa!K76 -> 96.6 | N4: =[1]Cocoa!L76 -> 96.6 | O4: =[1]Cocoa!M76 -> 96.6 | P4: =[1]Cocoa!N76 -> 96.6 | Q4: =[1]Cocoa!O76 -> 96.6 | R4: =[1]Cocoa!P76 -> 96.6 | S4: =[1]Cocoa!Q76 -> 96.6 | T4: =[1]Cocoa!R76 -> 96.6 | U4: =[1]Cocoa!S76 -> 96.6 | V4: =[1]Cocoa!T76 -> 96.6 | W4: =[1]Cocoa!U76 -> 96.6 | X4: =[1]Cocoa!V76 -> 96.6 | Y4: =[1]Cocoa!W76 -> 96.6 | Z4: =[1]Cocoa!X76 -> 96.6 | AA4: =[1]Cocoa!Y76 -> 96.6 | AB4: =[1]Cocoa!Z76 -> 96.6 | AC4: =[1]Cocoa!AA76 -> 96.6 | AD4: =[1]Cocoa!AB76 -> 96.6 | AE4: =[1]Cocoa!AC76 -> 96.6 | AF4: =[1]Cocoa!AD76 -> 96.6 | AG4: =[1]Cocoa!AE76 -> 96.6
A5: Rice+plantain 8y fallow | B5: 302.3510179 | C5: Cyclical | D5: ='[1]rice+plantain'!F5 -> -132.5666667 | E5: ='[1]rice+plantain'!F6 -> 158.1333333 | F5: ='[1]rice+plantain'!F7 -> 115.1333333 | G5: ='[1]rice+plantain'!F8 -> 0 | H5: ='[1]rice+plantain'!F9 -> 0 | I5: ='[1]rice+plantain'!F10 -> 0 | J5: ='[1]rice+plantain'!F11 -> 0 | K5: ='[1]rice+plantain'!F12 -> 0 | L5: ='[1]rice+plantain'!F13 -> 0 | M5: ='[1]rice+plantain'!F14 -> 0 | N5: ='[1]rice+plantain'!F15 -> 0 | O5: ='[1]rice+plantain'!F16 -> -44.56666667 | P5: ='[1]rice+plantain'!F17 -> 158.1333333 | Q5: ='[1]rice+plantain'!F18 -> 115.1333333 | R5: ='[1]rice+plantain'!F19 -> 0 | S5: ='[1]rice+plantain'!F20 -> 0 | T5: ='[1]rice+plantain'!F21 -> 0 | U5: ='[1]rice+plantain'!F22 -> 0 | V5: ='[1]rice+plantain'!F23 -> 0 | W5: ='[1]rice+plantain'!F24 -> 0 | X5: ='[1]rice+plantain'!F25 -> 0 | Y5: ='[1]rice+plantain'!F26 -> 0 | Z5: ='[1]rice+plantain'!F27 -> -44.56666667 | AA5: ='[1]rice+plantain'!F28 -> 158.1333333 | AB5: ='[1]rice+plantain'!F29 -> 115.1333333 | AC5: ='[1]rice+plantain'!F30 -> 0 | AD5: ='[1]rice+plantain'!F31 -> 0 | AE5: ='[1]rice+plantain'!F32 -> 0 | AF5: ='[1]rice+plantain'!F33 -> 0 | AG5: ='[1]rice+plantain'!F34 -> 0
A6: Rice+plantain 4y fallow | B6: 409.2379796 | C6: Cyclical | D6: ='[1]rice+plantain'!B5 -> -132.5666667 | E6: ='[1]rice+plantain'!B6 -> 158.1333333 | F6: ='[1]rice+plantain'!B7 -> 115.1333333 | G6: ='[1]rice+plantain'!B8 -> 0 | H6: ='[1]rice+plantain'!B9 -> 0 | I6: ='[1]rice+plantain'!B10 -> 0 | J6: ='[1]rice+plantain'!B11 -> 0 | K6: ='[1]rice+plantain'!B12 -> -72.56666667 | L6: ='[1]rice+plantain'!B13 -> 158.1333333 | M6: ='[1]rice+plantain'!B14 -> 115.1333333 | N6: ='[1]rice+plantain'!B15 -> 0 | O6: ='[1]rice+plantain'!B16 -> 0 | P6: ='[1]rice+plantain'!B17 -> 0 | Q6: ='[1]rice+plantain'!B18 -> 0 | R6: ='[1]rice+plantain'!B19 -> -72.56666667 | S6: ='[1]rice+plantain'!B20 -> 158.1333333 | T6: ='[1]rice+plantain'!B21 -> 115.1333333 | U6: ='[1]rice+plantain'!B22 -> 0 | V6: ='[1]rice+plantain'!B23 -> 0 | W6: ='[1]rice+plantain'!B24 -> 0 | X6: ='[1]rice+plantain'!B25 -> 0 | Y6: ='[1]rice+plantain'!B26 -> -72.56666667 | Z6: ='[1]rice+plantain'!B27 -> 158.1333333 | AA6: ='[1]rice+plantain'!B28 -> 115.1333333 | AB6: ='[1]rice+plantain'!B29 -> 0 | AC6: ='[1]rice+plantain'!B30 -> 0 | AD6: ='[1]rice+plantain'!B31 -> 0 | AE6: ='[1]rice+plantain'!B32 -> 0 | AF6: ='[1]rice+plantain'!B33 -> -72.56666667 | AG6: ='[1]rice+plantain'!B34 -> 158.1333333
A7: Improved pasture | B7: 617.9525529 | C7: Direct | D7: =[1]Pastures!D39-[1]Pastures!D23 -> -623 | E7: =[1]Pastures!D39 -> 84 | F7: =E7 -> 84 | G7: =F7 -> 84 | H7: 84 | I7: 84 | J7: 84 | K7: 84 | L7: 84 | M7: 84 | N7: 84 | O7: 84 | P7: 84 | Q7: 84 | R7: 84 | S7: 84 | T7: 84 | U7: 84 | V7: 84 | W7: 84 | X7: 84 | Y7: 84 | Z7: 84 | AA7: 84 | AB7: 84 | AC7: 84 | AD7: 84 | AE7: 84 | AF7: 84 | AG7: 84
A8: Traditional pasture | B8: 335.9728874 | C8: Direct | D8: =[1]Pastures!B39-[1]Pastures!B23 -> -374 | E8: =[1]Pastures!B39 -> 48 | F8: =E8 -> 48 | G8: 48 | H8: 48 | I8: 48 | J8: 48 | K8: 48 | L8: 48 | M8: 48 | N8: 48 | O8: 48 | P8: 48 | Q8: 48 | R8: 48 | S8: 48 | T8: 48 | U8: 48 | V8: 48 | W8: 48 | X8: 48 | Y8: 48 | Z8: 48 | AA8: 48 | AB8: 48 | AC8: 48 | AD8: 48 | AE8: 48 | AF8: 48 | AG8: 48
A10: w/Charcoal | B10: =NPV($B$18,D10:AG10) -> 359.8857143 | C10: Conversion | D10: =[1]Charcoal!B4 -> 377.88
A11: Charcoal+oil palm | B11: =NPV($B$18,D11:AG11) -> 605.2582783 | C11: Direct | D11: =D10+D3 -> 8.48 | E11: =E10+E3 -> -70 | F11: -70 | G11: -70 | H11: 46.056 | I11: 57.368 | J11: 68.68 | K11: 80.8 | L11: 80.8 | M11: 80.8 | N11: 80.8 | O11: 80.8 | P11: 80.8 | Q11: 80.8 | R11: 80.8 | S11: 80.8 | T11: 80.8 | U11: 80.8 | V11: 80.8 | W11: 80.8 | X11: -454 | Y11: -19 | Z11: -19 | AA11: -19 | AB11: 172.08 | AC11: 169.24 | AD11: 182.4 | AE11: 200 | AF11: 200 | AG11: 200
A12: Charcoal+rice+plantain 8y fallow | B12: =NPV($B$18,D12:AG12) -> 662.2367322 | C12: Direct | D12: =D5+D10 -> 245.3133333 | E12: =E5 -> 158.1333333 | F12: =F5 -> 115.1333333 | G12: 0 | H12: 0 | I12: 0 | J12: 0 | K12: 0 | L12: 0 | M12: 0 | N12: 0 | O12: -44.56666667 | P12: 158.1333333 | Q12: 115.1333333 | R12: 0 | S12: 0 | T12: 0 | U12: 0 | V12: 0 | W12: 0 | X12: 0 | Y12: 0 | Z12: -44.56666667 | AA12: 158.1333333 | AB12: 115.1333333 | AC12: 0 | AD12: 0 | AE12: 0 | AF12: 0 | AG12: 0
A13: w/Timber | B13: =NPV($B$18,D13:AG13) -> 428.5714286 | C13: Conversion | D13: =[1]Timber!B4 -> 450
A14: Timber+improved pasture | B14: =NPV($B$18,D14:AG14) -> 1046.523981 | C14: Direct | D14: =D13+D7 -> -173 | E14: =E7 -> 84 | F14: =F7 -> 84 | G14: 84 | H14: 84 | I14: 84 | J14: 84 | K14: 84 | L14: 84 | M14: 84 | N14: 84 | O14: 84 | P14: 84 | Q14: 84 | R14: 84 | S14: 84 | T14: 84 | U14: 84 | V14: 84 | W14: 84 | X14: 84 | Y14: 84 | Z14: 84 | AA14: 84 | AB14: 84 | AC14: 84 | AD14: 84 | AE14: 84 | AF14: 84 | AG14: 84
A16: NTFP collection | B16: =NPV($B$18,D16:AG16) -> 15.37245103 | C16: Forest harvest | D16: =[1]NTFPs!A4 -> 1 | E16: =D16 -> 1 | F16: =E16 -> 1 | G16: 1 | H16: 1 | I16: 1 | J16: 1 | K16: 1 | L16: 1 | M16: 1 | N16: 1 | O16: 1 | P16: 1 | Q16: 1 | R16: 1 | S16: 1 | T16: 1 | U16: 1 | V16: 1 | W16: 1 | X16: 1 | Y16: 1 | Z16: 1 | AA16: 1 | AB16: 1 | AC16: 1 | AD16: 1 | AE16: 1 | AF16: 1 | AG16: 1
A18: discount rate | B18: 0.05
A35: Annually discounted
B36: NPV | C36: Land use trajectory | D36: 1 | E36: =D36+1 -> 2 | F36: =E36+1 -> 3 | G36: 4 | H36: 5 | I36: 6 | J36: 7 | K36: 8 | L36: 9 | M36: 10 | N36: 11 | O36: 12 | P36: 13 | Q36: 14 | R36: 15 | S36: 16 | T36: 17 | U36: 18 | V36: 19 | W36: 20 | X36: 21 | Y36: 22 | Z36: 23 | AA36: 24 | AB36: 25 | AC36: 26 | AD36: 27 | AE36: 28 | AF36: 29 | AG36: 30
A38: Oil palm | B38: =SUM(D38:AG38) -> 245.372564 | C38: Transitional | D38: =D3/((1+$B$18)^(D$1)) -> -351.8095238 | E38: -63.49206349 | F38: -60.4686319 | G38: -57.58917324 | H38: 36.08608112 | I38: 42.80888487 | J38: 48.80959375 | K38: 54.68862045 | L38: 52.08440043 | M38: 49.60419089 | N38: 47.24208656 | O38: 44.99246339 | P38: 42.84996513 | Q38: 40.8094906 | R38: 38.86618153 | S38: 37.01541098 | T38: 35.25277236 | U38: 33.57406891 | V38: 31.97530373 | W38: 30.45267022 | X38: -162.9598335 | Y38: -6.495147551 | Z38: -6.18585481 | AA38: -5.891290295 | AB38: 50.81570095 | AC38: 47.59718198 | AD38: 48.85553339 | AE38: 51.01872743 | AF38: 48.58926422 | AG38: 46.27548973
A39: Cocoa | B39: =SUM(D39:AG39) -> 604.0422705 | C39: Transitional | D39: -776.5714286 | E39: -67.85306122 | F39: 72.69193392 | G39: 233.3348759 | H39: 75.68862768 | I39: 72.08440732 | J39: 68.65181649 | K39: 65.38268237 | L39: 62.26922131 | M39: 59.30402029 | N39: 56.48001933 | O39: 53.7904946 | P39: 51.22904247 | Q39: 48.78956426 | R39: 46.46625168 | S39: 44.25357302 | T39: 42.14626002 | U39: 40.13929526 | V39: 38.22790025 | W39: 36.40752405 | X39: 34.67383242 | Y39: 33.02269755 | Z39: 31.45018814 | AA39: 29.95256013 | AB39: 28.52624775 | AC39: 27.167855 | AD39: 25.87414762 | AE39: 24.64204535 | AF39: 23.46861462 | AG39: 22.35106154
A40: Rice+plantain 8y fallow | B40: 302.3510179 | C40: Cyclical | D40: -126.2539683 | E40: 143.4315949 | F40: 99.45650218 | G40: 0 | H40: 0 | I40: 0 | J40: 0 | K40: 0 | L40: 0 | M40: 0 | N40: 0 | O40: -24.8163876 | P40: 83.86148292 | Q40: 58.15015699 | R40: 0 | S40: 0 | T40: 0 | U40: 0 | V40: 0 | W40: 0 | X40: 0 | Y40: 0 | Z40: -14.50962786 | AA40: 49.03207221 | AB40: 33.99919245 | AC40: 0 | AD40: 0 | AE40: 0 | AF40: 0 | AG40: 0
A41: Rice+plantain 4y fallow | B41: 409.2379796 | C41: Cyclical | D41: -126.2539683 | E41: 143.4315949 | F41: 99.45650218 | G41: 0 | H41: 0 | I41: 0 | J41: 0 | K41: -49.11597637 | L41: 101.9341566 | M41: 70.68187926 | N41: 0 | O41: 0 | P41: 0 | Q41: 0 | R41: -34.90580742 | S41: 72.44270201 | T41: 50.23229197 | U41: 0 | V41: 0 | W41: 0 | X41: 0 | Y41: -24.80690565 | Z41: 51.48367582 | AA41: 35.69915207 | AB41: 0 | AC41: 0 | AD41: 0 | AE41: 0 | AF41: -17.6298047 | AG41: 36.58848721
A42: Improved pasture | B42: 617.9525529 | C42: Direct | D42: -593.3333333 | E42: 76.19047619 | F42: 72.56235828 | G42: 69.10700788 | H42: 65.81619798 | I42: 62.68209332 | J42: 59.69723173 | K42: 56.85450641 | L42: 54.14714896 | M42: 51.5687133 | N42: 49.11306028 | O42: 46.77434313 | P42: 44.54699345 | Q42: 42.42570805 | R42: 40.40543624 | S42: 38.48136785 | T42: 36.64892176 | U42: 34.90373501 | V42: 33.24165239 | W42: 31.65871656 | X42: 30.15115863 | Y42: 28.71538917 | Z42: 27.34798969 | AA42: 26.04570446 | AB42: 24.80543282 | AC42: 23.62422174 | AD42: 22.4992588 | AE42: 21.42786552 | AF42: 20.40749097 | AG42: 19.43570569
A43: Traditional pasture | B43: 335.9728874 | C43: Direct | D43: -356.1904762 | E43: 43.53741497 | F43: 41.46420473 | G43: 39.48971879 | H43: 37.60925599 | I43: 35.81833904 | J43: 34.11270385 | K43: 32.48828938 | L43: 30.94122798 | M43: 29.46783617 | N43: 28.06460588 | O43: 26.72819607 | P43: 25.45542483 | Q43: 24.24326174 | R43: 23.08882071 | S43: 21.98935306 | T43: 20.94224101 | U43: 19.94499143 | V43: 18.99522994 | W43: 18.09069518 | X43: 17.2292335 | Y43: 16.40879381 | Z43: 15.62742268 | AA43: 14.88325969 | AB43: 14.17453304 | AC43: 13.49955528 | AD43: 12.85671931 | AE43: 12.24449458 | AF43: 11.66142341 | AG43: 11.10611754
A45: w/Charcoal | B45: =NPV($B$18,D45:AG45) -> 342.7482993 | C45: Conversion | D45: =D10/((1+$B$18)^(D$1)) -> 359.8857143
A46: Charcoal+oil palm | B46: 244.0137147 | C46: Direct | D46: =D11/((1+$B$18)^(D$1)) -> 8.076190476 | E46: =E11/((1+$B$18)^(E$1)) -> -63.49206349 | F46: -60.4686319 | G46: -57.58917324 | H46: 36.08608112 | I46: 42.80888487 | J46: 48.80959375 | K46: 54.68862045 | L46: 52.08440043 | M46: 49.60419089 | N46: 47.24208656 | O46: 44.99246339 | P46: 42.84996513 | Q46: 40.8094906 | R46: 38.86618153 | S46: 37.01541098 | T46: 35.25277236 | U46: 33.57406891 | V46: 31.97530373 | W46: 30.45267022 | X46: -162.9598335 | Y46: -6.495147551 | Z46: -6.18585481 | AA46: -5.891290295 | AB46: 50.81570095 | AC46: 47.59718198 | AD46: 48.85553339 | AE46: 51.01872743 | AF46: 48.58926422 | AG46: 46.27548973
A47: Charcoal+rice+plantain 8y fallow | B47: 519.0614074 | C47: Direct | D47: =D12/((1+$B$18)^(D$1)) -> 233.631746 | E47: 143.4315949 | F47: 99.45650218 | G47: 0 | H47: 0 | I47: 0 | J47: 0 | K47: 0 | L47: 0 | M47: 0 | N47: 0 | O47: -24.8163876 | P47: 83.86148292 | Q47: 58.15015699 | R47: 0 | S47: 0 | T47: 0 | U47: 0 | V47: 0 | W47: 0 | X47: 0 | Y47: 0 | Z47: -14.50962786 | AA47: 49.03207221 | AB47: 33.99919245 | AC47: 0 | AD47: 0 | AE47: 0 | AF47: 0 | AG47: 0
A48: w/Timber | B48: 408.1632653 | C48: Conversion | D48: =D13/((1+$B$18)^(D$1)) -> 428.5714286
A49: Timber+improved pasture | B49: 542.5326046 | C49: Direct | D49: =D14/((1+$B$18)^(D$1)) -> -164.7619048 | E49: =E14/((1+$B$18)^(E$1)) -> 76.19047619 | F49: 72.56235828 | G49: 69.10700788 | H49: 65.81619798 | I49: 62.68209332 | J49: 59.69723173 | K49: 56.85450641 | L49: 54.14714896 | M49: 51.5687133 | N49: 49.11306028 | O49: 46.77434313 | P49: 44.54699345 | Q49: 42.42570805 | R49: 40.40543624 | S49: 38.48136785 | T49: 36.64892176 | U49: 34.90373501 | V49: 33.24165239 | W49: 31.65871656 | X49: 30.15115863 | Y49: 28.71538917 | Z49: 27.34798969 | AA49: 26.04570446 | AB49: 24.80543282 | AC49: 23.62422174 | AD49: 22.4992588 | AE49: 21.42786552 | AF49: 20.40749097 | AG49: 19.43570569
A50: NTFP collection | B50: 9.233799768 | C50: Forest harvest | D50: =D16/((1+$B$18)^(D$1)) -> 0.9523809524 | E50: 0.9070294785 | F50: 0.8638375985 | G50: 0.8227024748 | H50: 0.7835261665 | I50: 0.7462153966 | J50: 0.7106813301 | K50: 0.676839362 | L50: 0.6446089162 | M50: 0.6139132535 | N50: 0.5846792891 | O50: 0.5568374182 | P50: 0.5303213506 | Q50: 0.505067953 | R50: 0.4810170981 | S50: 0.458111522 | T50: 0.4362966876 | U50: 0.4155206549 | V50: 0.395733957 | W50: 0.3768894829 | X50: 0.3589423646 | Y50: 0.3418498711 | Z50: 0.3255713058 | AA50: 0.3100679103 | AB50: 0.2953027717 | AC50: 0.281240735 | AD50: 0.267848319 | AE50: 0.2550936371 | AF50: 0.2429463211 | AG50: 0.2313774487

Sheet OppCost Intro
A1: Introduction to opportunity costs
A2: Land use changes in tropical forest margins affect both carbon stocks and profitability. Generally, C stocks decrease
A3: emitting CO2 in the process. At the same time, human changes to land typically increases its profitability.
F5: If we look at a pairwise comparison of 'logged forest' that is converted to
F6: extensive agriculture, a substantial loss in C stock, from
F7: =Tradeoffs!B12 -> 200 | G7: to | H7: =Tradeoffs!B14 -> 15 | I7: Mg C/ha | J7: will lead to CO2 emissions of | M7: =F7-H7 -> 185 | N7: tC/ha or
F8: =44/12*(F7-H7) -> 678.3333333 | G8: t CO2/ha. (Note that emissions are counted as CO2 and
F9: stocks as C, the difference is (12+2*16)/12).
F10: Meanwhile, profitability expressed as discounted future revenue flow (Net Present Value or NPV)
F11: in $/ha, increased from | I11: =Tradeoffs!C12 -> 200 | J11: to | K11: =Tradeoffs!C14 -> 600 | L11: $/ha. To avoid these CO2 emissions
F12: (because they contribute to global warming), compensation is needed to off-set
F13: an 'opportunity cost' for those who can no longer convert forest land to agricultural use, of
F14: =(K11-I11)/F8 -> 0.5896805897 | G14: $/tCO2e.
A18: Knowing the basic numbers of the current levels of emissions and the economic consequences
A19: of land use change that cause emissions (or lead to the net sequestration of C and increase in C stocks) is essential information
A20: for all engaged in the carbon-related discussions.
A22: The opportunity costs differ from country to country, and region to region. Rather than using 'standard' numbers.
A23: as in the previous example, we need to have methods to derive good estimates for any set of conditions. This set of worksheets
A24: is designed to help you achieve that.

Sheet OppCost
A1: Opportunity cost estimate worksheet (national level) | H1: Land use distribution
A2: Data inputs: | D2: Outputs: | U2: Intermediate calculations | AB2: Sorted | AC2: Cumulative
A3: 1. Land uses (LU) initial & changes | D3: 1. Final land use estimates | U3: and Macro results | X3: Emissions | Y3: Abs value | Z3: OpCost | AA3: Emissions | AB3: OppCost | AC3: Emissions
A4: 2. C stock per LU | D4: 2.Opportunity cost curve | X4: =B45 -> 0 | Y4: =ABS(X4) -> 0 | Z4: =B37 -> 0 | AA4: 0 | AB4: -0.7792207792 | AC4: =AA4 -> 0
A5: 3. Profit per LU | D5: 3. National level summary | X5: =B46 -> 0 | Y5: =ABS(X5) -> 0 | Z5: =B38 -> -1.472727273 | AA5: 171.1111111 | AB5: -0.7792207792 | AC5: =AC4+AA5 -> 171.1111111
A6: 4. Workdays per LU | X6: =B47 -> 0 | Y6: 0 | Z6: =B39 -> -1.235294118 | AA6: 0 | AB6: 0 | AC6: =AC5+AA6 -> 171.1111111
X7: =B48 -> 0 | Y7: 0 | Z7: =B40 -> -0.6477272727 | AA7: 0 | AB7: 0 | AC7: 171.1111111
A8: All numbers in yellow cells are parameters that you can change | X8: =C45 -> 305.5555556 | Y8: 305.5555556 | Z8: =C37 -> 1.472727273 | AA8: 0 | AB8: 0 | AC8: 171.1111111
X9: =C46 -> 0 | Y9: 0 | Z9: =C38 -> 0 | AA9: 0 | AB9: 0 | AC9: 171.1111111
A10: Land use legend | B10: Time-averaged C stock | C10: Profit-ability | D10: Employment | H10: Land use change matrix | I10: Final landuse | J10: =A12 -> Natural forest | K10: =A13 -> Logged forest | L10: =A14 -> Agro-forestry | M10: =A15 -> Extensive agriculture | N10: Inconsis-tency check | X10: =C47 -> 0 | Y10: 0 | Z10: =C39 -> -1.136363636 | AA10: 0 | AB10: 0.5844155844 | AC10: 171.1111111
B11: (Mg C/ha) | C11: (NPV, $/ha) | D11: (workdays/year) | H11: Initial landuse | J11: =SUM(J12:J15) -> 0.15 | K11: =SUM(K12:K15) -> 0.25 | L11: =SUM(L12:L15) -> 0.3 | M11: =SUM(M12:M15) -> 0.3 | X11: =C48 -> 0 | Y11: 0 | Z11: =C40 -> -0.4306220096 | AA11: 684.4444444 | AB11: 0.5844155844 | AC11: 855.5555556
A12: Natural forest | B12: 250 | C12: 30 | D12: 5 | H12: =A37 -> Natural forest | I12: 0.4 | J12: 0.15 | K12: 0.25 | L12: 0 | M12: 0 | N12: =J12+K12+L12+M12-I12 -> 0 | X12: =D45 -> 0 | Y12: 0 | Z12: =D37 -> 1.235294118 | AA12: 0 | AB12: 0.6477272727 | AC12: 855.5555556
A13: Logged forest | B13: 200 | C13: 300 | D13: 15 | H13: =A38 -> Logged forest | I13: 0.3 | J13: 0 | K13: 0 | L13: 0.1 | M13: 0.2 | N13: =J13+K13+L13+M13-I13 -> 0 | X13: =D46 -> 293.3333333 | Y13: 293.3333333 | Z13: =D38 -> 1.136363636 | AA13: 0 | AB13: 0.6477272727 | AC13: 855.5555556
A14: Agro-forestry | B14: 80 | C14: 800 | D14: 120 | H14: =A39 -> Agro-forestry | I14: 0.1 | J14: 0 | K14: 0 | L14: 0.1 | M14: 0 | N14: =J14+K14+L14+M14-I14 -> 0 | X14: =D47 -> 0 | Y14: 0 | Z14: =D39 -> 0 | AA14: 0 | AB14: 0.7363636364 | AC14: 855.5555556
A15: Extensive agriculture | B15: 10 | C15: 600 | D15: 100 | H15: =A40 -> Extensive agriculture | I15: 0.2 | J15: 0 | K15: 0 | L15: 0.1 | M15: 0.1 | N15: =J15+K15+L15+M15-I15 -> 0 | X15: =D48 -> -171.1111111 | Y15: 171.1111111 | Z15: =D40 -> -0.7792207792 | AA15: 611.1111111 | AB15: 0.7363636364 | AC15: 1466.666667
H16: LU change (%/year) | I16: =SUM(I12:I15) -> 1 | J16: =100*(1-J11/$I12)/$B$19 -> 2.083333333 | K16: =100*(1-K11/$I12)/$B$19 -> 1.25 | L16: =100*(1-L11/$I12)/$B$19 -> 0.8333333333 | M16: =100*(1-M11/$I12)/$B$19 -> 0.8333333333 | X16: =E45 -> 0 | Y16: 0 | Z16: =E37 -> 0.6477272727 | AA16: 0 | AB16: 1.235294118 | AC16: 1466.666667
X17: =E46 -> 928.8888889 | Y17: 928.8888889 | Z17: =E38 -> 0.4306220096 | AA17: 0 | AB17: 1.235294118 | AC17: 1466.666667
H18: Opportunity cost curves | X18: =E47 -> 0 | Y18: 0 | Z18: =E39 -> 0.7792207792 | AA18: 0 | AB18: 1.948051948 | AC18: 1466.666667
A19: Period of analysis | B19: 30 | C19: years | I19: Original | X19: =E48 -> 0 | Y19: 0 | Z19: =E40 -> 0 | AA19: 171.1111111 | AB19: 1.948051948 | AC19: 1637.777778
A20: Size of country | B20: 2000000 | C20: km2
A21: Total population | B21: 1000000
A22: Pop working age | B22: 0.6 | AA22: Ordered results from macro program (needed for cumulative emissions curve)
A23: Workdays / year | B23: 230 | C23: days | AC23: scenario 1 | AE23: scenario 2
AA24: original | AC24: logged forest | AE24: logged forest
A25: CO2/C conversion | B25: =(2*16+12)/12 -> 3.666666667 | AC25: $300 -> 400 | AE25: 200 -> 150tC
AA26: OppCost | AB26: Emission | AC26: OppCost | AD26: Emission | AE26: OppCost | AF26: Emission
A27: Performance at national scale: | AA27: -0.7792207792 | AB27: 0 | AC27: -0.7792207792 | AD27: 0 | AE27: -0.7792207792 | AF27: 0
A28: Total LU-based emission, Pg CO2e/yr | C28: =SUM(C54:G61)/1000 -> 0.003625 | AA28: -0.7792207792 | AB28: 171.1111111 | AC28: -0.7792207792 | AD28: 171.1111111 | AE28: -0.7792207792 | AF28: 171.1111111
A29: Total C stock in land use, Pg C | C29: =(I12*B12+I13*B13+I14*B14+I15*B15)*100*B20/10^9 -> 34 | AA29: 0 | AB29: 171.1111111 | AC29: 0 | AD29: 171.1111111 | AE29: 0 | AF29: 171.1111111
A30: Total NPV of land uses (M$) | C30: =(I12*C12+I13*C13+I14*C14+I15*C15)*B20/10^4 -> 60400 | AA30: 0 | AB30: 171.1111111 | AC30: 0 | AD30: 171.1111111 | AE30: 0 | AF30: 171.1111111
A31: Total rural employment | C31: =(I12*D12+I13*D13+I14*D14+I15*D15)*B20/(B21*B22*B23) -> 0.5579710145 | AA31: 0 | AB31: 171.1111111 | AC31: 0 | AD31: 171.1111111 | AE31: 0 | AF31: 171.1111111
A32: Emissions as percentage of C stock | C32: =100*(C28/B25)/C29 -> 0.002907754011 | AA32: 0 | AB32: 171.1111111 | AC32: 0 | AD32: 171.1111111 | AE32: 0 | AF32: 171.1111111
AA33: 0.4306220096 | AB33: 171.1111111 | AC33: 0.2870813397 | AD33: 171.1111111 | AE33: 0.5844155844 | AF33: 171.1111111
A34: (vertical axis) | AA34: 0.4306220096 | AB34: 1100 | AC34: 0.2870813397 | AD34: 1100 | AE34: 0.5844155844 | AF34: 855.5555556
A35: Opportunity costs of land uses changes: $ per tCO2 | AA35: 0.6477272727 | AB35: 1100 | AC35: 0.6477272727 | AD35: 1100 | AE35: 0.6477272727 | AF35: 855.5555556
A36: Initial \ Final | B36: =J10 -> Natural forest | C36: =K10 -> Logged forest | D36: =L10 -> Agro-forestry | E36: =M10 -> Extensive agriculture | AA36: 0.6477272727 | AB36: 1100 | AC36: 0.6477272727 | AD36: 1100 | AE36: 0.6477272727 | AF36: 855.5555556
A37: =A12 -> Natural forest | B37: =IF($B12<>B$41,-($C12-B$42)/(44/12*($B12-B$41)),0) -> 0 | C37: =IF($B12<>C$41,-($C12-C$42)/(44/12*($B12-C$41)),0) -> 1.472727273 | D37: =IF($B12<>D$41,-($C12-D$42)/(44/12*($B12-D$41)),0) -> 1.235294118 | E37: =IF($B12<>E$41,-($C12-E$42)/(44/12*($B12-E$41)),0) -> 0.6477272727 | I37: Scenario 2 Logged forest $300 -> $400 NPV/ha | AA37: 1.136363636 | AB37: 1100 | AC37: 0.9090909091 | AD37: 1100 | AE37: 0.7363636364 | AF37: 855.5555556
A38: =A13 -> Logged forest | B38: =IF($B13<>B$41,($C13-B$42)/(44/12*($B13-B$41)),0) -> -1.472727273 | C38: =IF($B13<>C$41,-($C13-C$42)/(44/12*($B13-C$41)),0) -> 0 | D38: =IF($B13<>D$41,-($C13-D$42)/(44/12*($B13-D$41)),0) -> 1.136363636 | E38: =IF($B13<>E$41,-($C13-E$42)/(44/12*($B13-E$41)),0) -> 0.4306220096 | AA38: 1.136363636 | AB38: 1393.333333 | AC38: 0.9090909091 | AD38: 1393.333333 | AE38: 0.7363636364 | AF38: 1466.666667
A39: =A14 -> Agro-forestry | B39: =IF($B14<>B$41,($C14-B$42)/(44/12*($B14-B$41)),0) -> -1.235294118 | C39: =IF($B14<>C$41,($C14-C$42)/(44/12*($B14-C$41)),0) -> -1.136363636 | D39: =IF($B14<>D$41,-($C14-D$42)/(44/12*($B14-D$41)),0) -> 0 | E39: =IF($B14<>E$41,($C14-E$42)/(44/12*($B14-E$41)),0) -> 0.7792207792 | AA39: 1.235294118 | AB39: 1393.333333 | AC39: 1.235294118 | AD39: 1393.333333 | AE39: 1.235294118 | AF39: 1466.666667
A40: =A15 -> Extensive agriculture | B40: =IF($B15<>B$41,($C15-B$42)/(44/12*($B15-B$41)),0) -> -0.6477272727 | C40: =IF($B15<>C$41,($C15-C$42)/(44/12*($B15-C$41)),0) -> -0.4306220096 | D40: =IF($B15<>D$41,-($C15-D$42)/(44/12*($B15-D$41)),0) -> -0.7792207792 | E40: =IF($B15<>E$41,-($C15-E$42)/(44/12*($B15-E$41)),0) -> 0 | AA40: 1.235294118 | AB40: 1393.333333 | AC40: 1.235294118 | AD40: 1393.333333 | AE40: 1.235294118 | AF40: 1466.666667
A41: Carbon | B41: =B12 -> 250 | C41: =B13 -> 200 | D41: =B14 -> 80 | E41: =B15 -> 10 | AA41: 1.472727273 | AB41: 1393.333333 | AC41: 2.018181818 | AD41: 1393.333333 | AE41: 1.948051948 | AF41: 1466.666667
A42: NPV Profits | B42: =C12 -> 30 | C42: =C13 -> 300 | D42: =C14 -> 800 | E42: =C15 -> 600 | AA42: 1.472727273 | AB42: 1698.888889 | AC42: 2.018181818 | AD42: 1698.888889 | AE42: 1.948051948 | AF42: 1637.777778
A43: (horizontal axis)
A44: Emissions, Tg CO2e/yr
A45: =H12 -> Natural forest | B45: =(($B12-B$41)*$B$25*J12*100*$B$20/10^6)/$B$19 -> 0 | C45: 305.5555556 | D45: 0 | E45: 0
A46: =H13 -> Logged forest | B46: 0 | C46: 0 | D46: 293.3333333 | E46: 928.8888889
A47: =H14 -> Agro-forestry | B47: 0 | C47: 0 | D47: 0 | E47: 0
A48: =H15 -> Extensive agriculture | B48: 0 | C48: 0 | D48: -171.1111111 | E48: 0
I53: Scenario 2 Logged forest 200 -> 150tc/ha
A55: Intermediate calculations
A57: % change of initial LU
A58: =A45 -> Natural forest | B58: =J12/$I12 -> 0.375 | C58: 0.625 | D58: 0 | E58: 0
A59: =A46 -> Logged forest | B59: 0 | C59: 0 | D59: 0.3333333333 | E59: 0.6666666667
A60: =A47 -> Agro-forestry | B60: 0 | C60: 0 | D60: 1 | E60: 0
A61: =A48 -> Extensive agriculture | B61: 0 | C61: 0 | D61: 0.5 | E61: 0.5
A63: % change of final LU | B63: Sum of changes
A64: Final land use | B64: =SUM(B65:B68) -> 0.05625 | C64: =SUM(C65:C68) -> 0.09375 | D64: =SUM(D65:D68) -> 0.5333333333 | E64: =SUM(E65:E68) -> 0.3166666667
A65: =J11 -> 0.15 | B65: =B58*$A65 -> 0.05625 | C65: 0.09375 | D65: 0 | E65: 0
A66: =K11 -> 0.25 | B66: 0 | C66: 0 | D66: 0.08333333333 | E66: 0.1666666667
A67: =L11 -> 0.3 | B67: 0 | C67: 0 | D67: 0.3 | E67: 0
A68: =M11 -> 0.3 | B68: 0 | C68: 0 | D68: 0.15 | E68: 0.15

Sheet Tradeoffs
A1: Tradeoff comparisons
A2: Data inputs: | D2: Output: | T2: Active values
A3: 1. C stock per LU | D3: Tradeoff graphs:
A4: 2. Profit per LU | D4: 1. Profitability v Carbon
A5: 3. Workdays per LU | D5: 2. Profitability v Employment
D6: 3. Employment v Carbon
A9: Land use legend | B9: Time-averaged C stock | C9: Profitability | D9: Rural employment
B10: (Mg C/ha) | C10: (NPV, $/ha) | D10: (workdays/year)
A11: Natural forest | B11: 250 | C11: 2 | D11: 5
A12: Logged forest | B12: 200 | C12: 200 | D12: 15
A13: Agro-forestry | B13: 80 | C13: 800 | D13: 120
A14: Extensive agriculture | B14: 15 | C14: 600 | D14: 100

Sheet Eligibility filter
A1: At the current stage of international negotiations, it is not yet clear what the 'eligibility rules' will be.
A2: Here you can see the consequences of the various possible outcomes.
B3: Please make your choice here
B4: Effective forest definition | C4: 7 | D4: =IF(C4<7,"Stricter than Kyoto",IF(C4=7,"Kyoto forest",IF(OR(C4<=1,C4>11),"Out of range",""))) -> Kyoto forest | F4: =CONCATENATE("First class of 'non-forest' is: ",INDEX($B$10:$B$20,MATCH($C$4+1,$A$10:$A$20))) -> First class of 'non-forest' is: Improved pastures
B5: # of D's | C5: 2 | D5: =IF(OR(C5<1,C5>2),"Out of range","") ->  | F5: =CONCATENATE("Last class of 'forest' is: ",INDEX($B$10:$B$20,MATCH($C$4,$A$10:$A$20))) -> Last class of 'forest' is: Oil palm | O5: =CONCATENATE("This landscape had ",P23," % forest which contains ",Q23*[2]OpCost2!B28*100/10^9, " Pg C") -> This landscape had 81.01 % forest which contains 25.0412 Pg C
B6: # of +'s | C6: 2 | D6: =IF(OR(C6<0,C6>2),"Out of range","") ->  | E6: =CONCATENATE("You chose: ",IF(C5=1,"RED",IF(AND(C5=2,C6=0),"REDD",IF(AND(C5=2,C6=1),"REDD+",IF(AND(C5=2,C6=2),"REDD++/AFOLU accounting"))))) -> You chose: REDD++/AFOLU accounting | O6: =CONCATENATE([2]OpCost2!B27," years later, this landscape had ",P24," % forest which contains ",Q24*[2]OpCost2!B28/10^7," PgC") -> 30 years later, this landscape had 78.01 % forest which contains 21.3112 PgC
C7: =IF(C8<=$C$4,1,0) -> 1 | D7: =IF(D8<=$C$4,1,0) -> 1 | E7: 1 | F7: 1 | G7: 1 | H7: 1 | I7: 1 | J7: 0 | K7: 0 | L7: 0 | M7: 0
C8: 1 | D8: 2 | E8: 3 | F8: 4 | G8: 5 | H8: 6 | I8: 7 | J8: 8 | K8: 9 | L8: 10 | M8: 11
C9: Natural forest | D9: Logged forest | E9: Heavily logged forest | F9: Agroforest 1 | G9: Agroforest 2 | H9: Cocoa | I9: Oil palm | J9: Improved pastures | K9: Low productivity pastures | L9: Extensive crops | M9: Intensive crops
A10: 1 | B10: Natural forest | C10: =IF(C$8=$A10,0,IF(AND($C$5=1,$A10<=$C$4,C$8>$C$4),1,IF(AND($C$5=2,$C$6=0,$A10<=$C$4,C$8>$A10),1,IF(AND($C$5=2,$C$6=1,$A10<=$C$4),1,IF(AND($C$5=2,$C$6=2),1,0))))) -> 0 | D10: 1 | E10: 1 | F10: 1 | G10: 1 | H10: 1 | I10: 1 | J10: 1 | K10: 1 | L10: 1 | M10: 1 | N10: =IF(A10<=$C$4,1,0) -> 1
A11: 2 | B11: Logged forest | C11: 1 | D11: 0 | E11: 1 | F11: 1 | G11: 1 | H11: 1 | I11: 1 | J11: 1 | K11: 1 | L11: 1 | M11: 1 | N11: =IF(A11<=$C$4,1,0) -> 1
A12: 3 | B12: Heavily logged forest | C12: 1 | D12: 1 | E12: 0 | F12: 1 | G12: 1 | H12: 1 | I12: 1 | J12: 1 | K12: 1 | L12: 1 | M12: 1 | N12: 1
A13: 4 | B13: Agroforest 1 | C13: 1 | D13: 1 | E13: 1 | F13: 0 | G13: 1 | H13: 1 | I13: 1 | J13: 1 | K13: 1 | L13: 1 | M13: 1 | N13: 1
A14: 5 | B14: Agroforest 2 | C14: 1 | D14: 1 | E14: 1 | F14: 1 | G14: 0 | H14: 1 | I14: 1 | J14: 1 | K14: 1 | L14: 1 | M14: 1 | N14: 1
A15: 6 | B15: Cocoa | C15: 1 | D15: 1 | E15: 1 | F15: 1 | G15: 1 | H15: 0 | I15: 1 | J15: 1 | K15: 1 | L15: 1 | M15: 1 | N15: 1
A16: 7 | B16: Oil palm | C16: 1 | D16: 1 | E16: 1 | F16: 1 | G16: 1 | H16: 1 | I16: 0 | J16: 1 | K16: 1 | L16: 1 | M16: 1 | N16: 1 | O16: =IF(P24<P23,CONCATENATE("Deforestation affected ",-100*(P24-P23)/P23," % of the forest."),CONCATENATE("Forest cover increased by ", P24-P23," %")) -> Deforestation affected 3.70324651277618 % of the forest.
A17: 8 | B17: Improved pastures | C17: 1 | D17: 1 | E17: 1 | F17: 1 | G17: 1 | H17: 1 | I17: 1 | J17: 0 | K17: 1 | L17: 1 | M17: 1 | N17: 0 | O17: =CONCATENATE("Eligible emissions are ",P25," which is ",100*P25/P26,"% of the total net emissions.") -> Eligible emissions are 455.155555555555 which is 100% of the total net emissions.
A18: 9 | B18: Low productivity pastures | C18: 1 | D18: 1 | E18: 1 | F18: 1 | G18: 1 | H18: 1 | I18: 1 | J18: 1 | K18: 0 | L18: 1 | M18: 1 | N18: 0
A19: 10 | B19: Extensive crops | C19: 1 | D19: 1 | E19: 1 | F19: 1 | G19: 1 | H19: 1 | I19: 1 | J19: 1 | K19: 1 | L19: 0 | M19: 1 | N19: 0
A20: 11 | B20: Intensive crops | C20: 1 | D20: 1 | E20: 1 | F20: 1 | G20: 1 | H20: 1 | I20: 1 | J20: 1 | K20: 1 | L20: 1 | M20: 0 | N20: 0
P22: % cover | Q22: C stock
O23: Before | P23: =100*(C7*[2]OpCost2!H12+D7*[2]OpCost2!H13+E7*[2]OpCost2!H14+F7*[2]OpCost2!H15+G7*[2]OpCost2!H16+H7*[2]OpCost2!H17+I7*[2]OpCost2!H18+J7*[2]OpCost2!H19+K7*[2]OpCost2!H20+L7*[2]OpCost2!H21+M7*[2]OpCost2!H22) -> 81.01 | Q23: =C7*[2]OpCost2!H12*[2]OpCost2!B12+D7*[2]OpCost2!H13*[2]OpCost2!B13+E7*[2]OpCost2!H14*[2]OpCost2!B14+F7*[2]OpCost2!H15*[2]OpCost2!B15+G7*[2]OpCost2!H16*[2]OpCost2!B16+H7*[2]OpCost2!H17*[2]OpCost2!B17+I7*[2]OpCost2!H18*[2]OpCost2!B18+J7*[2]OpCost2!H19*[2]OpCost2!B19+K7*[2]OpCost2!H20*[2]OpCost2!B20+L7*[2]OpCost2!H21*[2]OpCost2!B21+M7*[2]OpCost2!H22*[2]OpCost2!B22 -> 125.206 | R23: =100*Q23/P23 -> 154.5562276
O24: After | P24: =100*(C7*[2]OpCost2!I11+D7*[2]OpCost2!J11+E7*[2]OpCost2!K11+F7*[2]OpCost2!L11+G7*[2]OpCost2!M11+H7*[2]OpCost2!N11+I7*[2]OpCost2!O11+J7*[2]OpCost2!P11+K7*[2]OpCost2!Q11+L7*[2]OpCost2!R11+M7*[2]OpCost2!S11) -> 78.01 | Q24: =C7*[2]OpCost2!I11*[2]OpCost2!B12+D7*[2]OpCost2!J11*[2]OpCost2!B13+E7*[2]OpCost2!K11*[2]OpCost2!B14+F7*[2]OpCost2!L11*[2]OpCost2!B15+G7*[2]OpCost2!M11*[2]OpCost2!B16+H7*[2]OpCost2!N11*[2]OpCost2!B17+I7*[2]OpCost2!O11*[2]OpCost2!B18+J7*[2]OpCost2!P11*[2]OpCost2!B19+K7*[2]OpCost2!Q11*[2]OpCost2!B20+L7*[2]OpCost2!R11*[2]OpCost2!B21+M7*[2]OpCost2!S11*[2]OpCost2!B22 -> 106.556 | R24: =100*Q24/P24 -> 136.5927445
O25: Eligible | P25: =SUM([2]OpCost2!Y3:Y125) -> 455.1555556
O26: Total Net | P26: =SUM([2]OpCost2!W3:W125) -> 455.1555556
